[Event "EYCC Open-U12 2019"]
[Site "Bratislava"]
[Date "2019.08.09"]
[Round "8.25"]
[White "Wahlgreen, Noah"]
[Black "Konyves, Almos"]
[Result "0-1"]
[ECO "C50"]
[WhiteElo "1743"]
[BlackElo "2104"]
[Annotator "NA"]
[PlyCount "96"]
[EventDate "2019.08.02"]
[EventType "swiss"]
[EventCountry "SVK"]
[SourceTitle "playchess.com"]
[Source "ChessBase"]
[SourceQuality "1"]
[TimeControl "40/5400+30:1800+30"]

1. e4 {[%emt 0:00:00]} e5 {[%emt 0:00:00]} 2. Nf3 {[%emt 0:00:00]} Nc6 {[%emt 0:00:00]} 3. Bc4 {[%emt 0:00:00]} Be7 {[%emt 0:00:00]} 4. O-O {[%emt 0:05:05]} Nf6 {[%emt 0:00:02]} 5. Re1 {[%emt 0:04:53]} d6 {[%emt 0:00:14]} 6. c3 {[%emt 0:00:12]} O-O {[%emt 0:00:32]} 7. d4 {[%emt 0:00:50]} Bg4 {[%emt 0:02:56]} 8. d5 {[%emt 0:05:19]} Nb8 {[%emt 0:00:56]} 9. h3 {[%emt 0:02:41]} Bd7 {[%emt 0:01:49]} 10. a4 {[%emt 0:05:44]} Ne8 {[%emt 0:02:23]} 11. b4 {[%emt 0:04:49]} f5 {[%emt 0:01:28]} 12. Nbd2 {[%emt 0:00:41]} f4 {[%emt 0:00:57]} 13. Be2 {[%emt 0:03:16]} Nf6 {[%emt 0:02:05]} 14. Qb3 {[%emt 0:01:58]} Kh8 {[%emt 0:05:26]} 15. Ba3 {[%emt 0:04:52]} Qe8 {[%emt 0:03:59]} 16. c4 {[%emt 0:01:36]} Qg6 {[%emt 0:22:44]} 17. Kh1 {[%emt 0:03:23]} Qh6 {[%emt 0:03:24]} 18. Nh2 {[%emt 0:02:12]} g5 {[%emt 0:01:27]} 19. f3 {[%emt 0:01:57]} Rg8 {[%emt 0:12:59]} 20. c5 {[%emt 0:03:07]} Rg6 {[%emt 0:12:28]} 21. Nc4 {[%emt 0:04:25]} Bxh3 {[%emt 0:00:38]} 22. gxh3 {[%emt 0:01:06]} Qxh3 {[%emt 0:00:11]} 23. Bf1 {[%emt 0:02:18]} Qg3 {[%emt 0:02:40]} 24. Re2 {[%emt 0:05:02]} g4 {[%emt 0:01:39]} 25. Rg2 {[%emt 0:01:13]} Qh3 {[%emt 0:01:22]} 26. Rxg4 {[%emt 0:00:53]} Nxg4 {[%emt 0:00:07]} 27. Qb2 {[%emt 0:02:08]} Qxh2+ {[%emt 0:00:05]} 28. Qxh2 {[%emt 0:00:37]} Nxh2 {[%emt 0:00:05]} 29. Kxh2 {[%emt 0:00:21]} Nd7 {[%emt 0:00:07]} 30. Bh3 {[%emt 0:01:24]} Rag8 {[%emt 0:01:27]} 31. Ra2 {[%emt 0:06:11]} Nf6 {[%emt 0:02:18]} 32. b5 {[%emt 0:01:08]} Ne8 {[%emt 0:06:33]} 33. Na5 {[%emt 0:02:04]} b6 {[%emt 0:04:16]} 34. Nc6 {[%emt 0:00:11]} Bh4 {[%emt 0:00:16]} 35. cxd6 {[%emt 0:02:45]} cxd6 {[%emt 0:00:10]} 36. Nxa7 {[%emt 0:00:17]} Bg3+ {[%emt 0:00:18]} 37. Kh1 {[%emt 0:00:19]} Rh6 {[%emt 0:00:14]} 38. Kg2 {[%emt 0:00:23]} Be1+ {[%emt 0:00:36]} 39. Bg4 {[%emt 0:00:52]} Rh4 {[%emt 0:00:58]} 40. Kf1 {[%emt 0:00:00]} h5 {[%emt 0:00:00]} 41. Kxe1 {[%emt 0:04:00]} Rh1+ {[%emt 0:00:29]} 42. Kf2 {[%emt 0:01:22]} Rh2+ {[%emt 0:00:07]} 43. Kf1 {[%emt 0:00:08]} Rxa2 {[%emt 0:00:07]} 44. Be6 {[%emt 0:00:48]} Rxa3 {[%emt 0:00:16]} 45. Bxg8 {[%emt 0:00:16]} Rxf3+ {[%emt 0:00:07]} 46. Kg2 {[%emt 0:00:15]} Rg3+ {[%emt 0:00:04]} 47. Kh2 {[%emt 0:00:05]} Rxg8 {[%emt 0:00:09]} 48. Nc8 {[%emt 0:00:11]} f3 {[%emt 0:00:17]} 0-1

[Event "EYCC Open-U12 2019"]
[Site "Bratislava"]
[Date "2019.08.09"]
[Round "8.26"]
[White "Kamilov, Dmitry"]
[Black "Venkatesan, Kavin"]
[Result "1-0"]
[ECO "B90"]
[WhiteElo "1990"]
[BlackElo "1797"]
[Annotator "NA"]
[PlyCount "109"]
[EventDate "2019.08.02"]
[EventType "swiss"]
[EventCountry "SVK"]
[SourceTitle "playchess.com"]
[Source "ChessBase"]
[SourceQuality "1"]
[TimeControl "40/5400+30:1800+30"]

1. e4 {[%emt 0:00:00]} c5 {[%emt 0:00:00]} 2. Nf3 {[%emt 0:00:00]} d6 {[%emt 0:00:00]} 3. d4 {[%emt 0:00:00]} cxd4 {[%emt 0:00:06]} 4. Nxd4 {[%emt 0:00:00]} Nf6 {[%emt 0:00:12]} 5. Nc3 {[%emt 0:00:00]} a6 {[%emt 0:00:07]} 6. Bc4 {[%emt 0:00:00]} e6 {[%emt 0:00:26]} 7. Bb3 {[%emt 0:00:02]} Nbd7 {[%emt 0:01:29]} 8. f4 {[%emt 0:00:13]} Nc5 {[%emt 0:03:37]} 9. Qf3 {[%emt 0:00:07]} Be7 {[%emt 0:02:15]} 10. O-O {[%emt 0:01:07]} O-O {[%emt 0:00:56]} 11. g4 {[%emt 0:00:12]} Qc7 {[%emt 0:05:40]} 12. Be3 {[%emt 0:07:08]} b5 {[%emt 0:00:55]} 13. g5 {[%emt 0:00:25]} Nfd7 {[%emt 0:14:16]} 14. f5 {[%emt 0:34:20]} Ne5 {[%emt 0:00:49]} 15. Qg2 {[%emt 0:02:09]} b4 {[%emt 0:01:13]} 16. Nce2 {[%emt 0:00:22]} exf5 {[%emt 0:03:22]} 17. Bd5 {[%emt 0:09:02]} Bb7 {[%emt 0:05:21]} 18. exf5 {[%emt 0:02:02]} Nc4 {[%emt 0:10:28]} 19. Bf4 {[%emt 0:06:24]} Nb6 {[%emt 0:09:31]} 20. Bxb7 {[%emt 0:04:00]} Qxb7 {[%emt 0:00:44]} 21. f6 {[%emt 0:00:13]} Qxg2+ {[%emt 0:05:53]} 22. Kxg2 {[%emt 0:00:02]} gxf6 {[%emt 0:00:19]} 23. gxf6 {[%emt 0:00:05]} Bxf6 {[%emt 0:00:56]} 24. Bxd6 {[%emt 0:00:19]} Bxd4 {[%emt 0:00:20]} 25. Bxf8 {[%emt 0:07:15]} Rxf8 {[%emt 0:00:07]} 26. Nxd4 {[%emt 0:00:03]} Nc4 {[%emt 0:00:30]} 27. Kh1 {[%emt 0:00:55]} Kh8 {[%emt 0:08:14]} 28. Rae1 {[%emt 0:02:36]} Nxb2 {[%emt 0:02:16]} 29. Ne6 {[%emt 0:00:55]} Nxe6 {[%emt 0:01:24]} 30. Rxe6 {[%emt 0:00:06]} a5 {[%emt 0:00:43]} 31. Re5 {[%emt 0:03:54]} Nc4 {[%emt 0:00:22]} 32. Rc5 {[%emt 0:00:16]} Na3 {[%emt 0:02:17]} 33. Rf2 {[%emt 0:01:25]} a4 {[%emt 0:00:50]} 34. Ra5 {[%emt 0:00:14]} Rc8 {[%emt 0:01:32]} 35. Rxa4 {[%emt 0:01:42]} Nxc2 {[%emt 0:02:13]} 36. Rxf7 {[%emt 0:01:21]} Kg8 37. Raa7 Ne3 {[%emt 0:02:44]} 38. Rg7+ {[%emt 0:01:13]} Kf8 {[%emt 0:00:15]} 39. Rac7 {[%emt 0:01:58]} Rd8 {[%emt 0:00:15]} 40. Rgd7 {[%emt 0:00:21]} Rxd7 {[%emt 0:00:55]} 41. Rxd7 {[%emt 0:00:08]} Kg8 {[%emt 0:00:19]} 42. Rd4 {[%emt 0:00:13]} Nc2 {[%emt 0:00:53]} 43. Rc4 {[%emt 0:00:10]} b3 {[%emt 0:00:15]} 44. axb3 {[%emt 0:00:07]} Na3 {[%emt 0:00:06]} 45. Rc5 {[%emt 0:00:16]} Kf7 {[%emt 0:00:13]} 46. Rc7+ {[%emt 0:00:23]} Kg6 {[%emt 0:00:18]} 47. Rc5 {[%emt 0:00:43]} Kf7 {[%emt 0:00:10]} 48. Kg1 {[%emt 0:00:35]} Ke6 {[%emt 0:00:28]} 49. Kf2 {[%emt 0:00:24]} Kd6 {[%emt 0:00:30]} 50. b4 {[%emt 0:00:08]} Nb1 {[%emt 0:00:36]} 51. Ke2 {[%emt 0:00:06]} h6 {[%emt 0:00:37]} 52. Kd1 {[%emt 0:00:14]} Na3 {[%emt 0:00:07]} 53. Kc1 {[%emt 0:00:02]} Kd7 {[%emt 0:01:04]} 54. Kb2 {[%emt 0:00:01]} h5 {[%emt 0:00:17]} 55. Kxa3 1-0

[Event "EYCC Open-U12 2019"]
[Site "Bratislava"]
[Date "2019.08.09"]
[Round "8.27"]
[White "Soderstrom, Adrian"]
[Black "Lye, Sverre"]
[Result "1-0"]
[ECO "E73"]
[WhiteElo "1970"]
[BlackElo "1839"]
[Annotator "NA"]
[PlyCount "59"]
[EventDate "2019.08.02"]
[EventType "swiss"]
[EventCountry "SVK"]
[SourceTitle "playchess.com"]
[Source "ChessBase"]
[SourceQuality "1"]
[TimeControl "40/5400+30:1800+30"]

1. d4 {[%emt 0:00:00]} Nf6 {[%emt 0:00:00]} 2. c4 {[%emt 0:00:06]} g6 {[%emt 0:00:31]} 3. Nc3 {[%emt 0:00:07]} Bg7 {[%emt 0:00:17]} 4. e4 {[%emt 0:00:09]} d6 {[%emt 0:00:31]} 5. Be2 {[%emt 0:00:18]} O-O {[%emt 0:00:54]} 6. Be3 {[%emt 0:00:11]} Nbd7 {[%emt 0:01:55]} 7. Qd2 {[%emt 0:00:55]} e5 {[%emt 0:01:14]} 8. d5 {[%emt 0:01:55]} Nc5 {[%emt 0:02:03]} 9. f3 {[%emt 0:00:08]} a5 {[%emt 0:02:05]} 10. g4 {[%emt 0:00:15]} Bd7 {[%emt 0:02:30]} 11. Nh3 {[%emt 0:03:56]} Na4 {[%emt 0:05:20]} 12. Nxa4 {[%emt 0:03:36]} Bxa4 {[%emt 0:00:25]} 13. Nf2 {[%emt 0:00:50]} Ne8 {[%emt 0:10:03]} 14. h4 {[%emt 0:03:38]} f6 {[%emt 0:07:34]} 15. h5 {[%emt 0:13:56]} Rf7 {[%emt 0:06:05]} 16. hxg6 {[%emt 0:11:53]} hxg6 {[%emt 0:00:12]} 17. g5 {[%emt 0:00:37]} Bd7 {[%emt 0:05:22]} 18. O-O-O {[%emt 0:06:03]} f5 {[%emt 0:05:40]} 19. exf5 {[%emt 0:00:24]} gxf5 {[%emt 0:02:34]} 20. g6 {[%emt 0:00:53]} Rf8 {[%emt 0:02:47]} 21. Bh6 {[%emt 0:02:36]} f4 {[%emt 0:02:20]} 22. Ne4 {[%emt 0:05:09]} Bxh6 {[%emt 0:03:19]} 23. Rxh6 {[%emt 0:00:14]} Bf5 {[%emt 0:01:09]} 24. Bd3 {[%emt 0:04:04]} Bxe4 {[%emt 0:04:03]} 25. Bxe4 {[%emt 0:00:18]} Nf6 {[%emt 0:00:24]} 26. g7 {[%emt 0:02:36]} Kxg7 {[%emt 0:00:27]} 27. Qg2+ {[%emt 0:00:24]} Kf7 {[%emt 0:00:28]} 28. Qg6+ {[%emt 0:00:07]} Ke7 {[%emt 0:00:07]} 29. Rh7+ {[%emt 0:00:09]} Nxh7 {[%emt 0:00:15]} 30. Qe6# {[%emt 0:00:06]} 1-0

[Event "EYCC Open-U12 2019"]
[Site "Bratislava"]
[Date "2019.08.09"]
[Round "8.28"]
[White "Cohen, Elad"]
[Black "Dovbnia, Nikita"]
[Result "0-1"]
[ECO "C42"]
[WhiteElo "2002"]
[BlackElo "1777"]
[Annotator "NA"]
[PlyCount "116"]
[EventDate "2019.08.02"]
[EventType "swiss"]
[EventCountry "SVK"]
[SourceTitle "playchess.com"]
[Source "ChessBase"]
[SourceQuality "1"]
[TimeControl "40/5400+30:1800+30"]

1. e4 {[%emt 0:00:00]} e5 {[%emt 0:00:00]} 2. Nf3 {[%emt 0:00:00]} Nf6 {[%emt 0:00:00]} 3. Nxe5 {[%emt 0:00:07]} d6 {[%emt 0:00:03]} 4. Nf3 {[%emt 0:00:19]} Nxe4 {[%emt 0:00:12]} 5. Bd3 {[%emt 0:00:14]} Nc5 {[%emt 0:02:30]} 6. Be2 {[%emt 0:00:27]} d5 {[%emt 0:00:29]} 7. d4 {[%emt 0:00:44]} Ne4 {[%emt 0:00:29]} 8. O-O {[%emt 0:00:45]} Be7 {[%emt 0:04:33]} 9. Bf4 {[%emt 0:03:46]} O-O {[%emt 0:01:14]} 10. Nbd2 {[%emt 0:00:58]} Nd7 {[%emt 0:03:35]} 11. Ne5 {[%emt 0:06:43]} Nxe5 {[%emt 0:02:16]} 12. Bxe5 {[%emt 0:01:05]} Bf5 {[%emt 0:06:31]} 13. f3 {[%emt 0:07:18]} Nd6 {[%emt 0:02:54]} 14. Re1 {[%emt 0:06:07]} c6 {[%emt 0:06:52]} 15. Nf1 {[%emt 0:04:37]} Nc4 {[%emt 0:10:08]} 16. Bxc4 {[%emt 0:05:04]} dxc4 {[%emt 0:00:27]} 17. Ne3 {[%emt 0:01:39]} Be6 {[%emt 0:01:09]} 18. c3 {[%emt 0:02:35]} Qd7 {[%emt 0:03:51]} 19. b3 {[%emt 0:07:58]} cxb3 {[%emt 0:01:14]} 20. axb3 {[%emt 0:00:02]} Rfd8 {[%emt 0:03:56]} 21. Qc2 {[%emt 0:05:02]} Bf8 {[%emt 0:08:48]} 22. Red1 {[%emt 0:07:11]} f6 {[%emt 0:05:51]} 23. Bg3 {[%emt 0:01:52]} Bd6 {[%emt 0:02:39]} 24. Bxd6 {[%emt 0:04:56]} Qxd6 {[%emt 0:01:21]} 25. Nc4 {[%emt 0:04:06]} Qc7 {[%emt 0:04:54]} 26. Re1 {[%emt 0:04:16]} Bf7 {[%emt 0:01:54]} 27. Qf2 {[%emt 0:00:42]} b5 {[%emt 0:02:11]} 28. Nd2 {[%emt 0:00:36]} a5 {[%emt 0:00:16]} 29. b4 {[%emt 0:06:10]} axb4 {[%emt 0:05:59]} 30. cxb4 {[%emt 0:00:43]} Qd6 {[%emt 0:01:13]} 31. Rxa8 {[%emt 0:00:38]} Rxa8 {[%emt 0:00:01]} 32. Rb1 {[%emt 0:01:18]} Rd8 {[%emt 0:01:11]} 33. Ne4 {[%emt 0:05:39]} Qxd4 {[%emt 0:00:51]} 34. Qxd4 {[%emt 0:01:39]} Rxd4 {[%emt 0:00:07]} 35. Ra1 {[%emt 0:00:40]} Bg6 {[%emt 0:01:33]} 36. Ra6 {[%emt 0:02:44]} Bxe4 {[%emt 0:00:29]} 37. fxe4 {[%emt 0:00:01]} Rxb4 {[%emt 0:00:31]} 38. Rxc6 {[%emt 0:00:26]} Rxe4 {[%emt 0:00:07]} 39. Rb6 {[%emt 0:00:26]} b4 {[%emt 0:00:13]} 40. Rb7 {[%emt 0:00:00]} h6 {[%emt 0:00:00]} 41. Kf2 {[%emt 0:01:40]} Kh7 {[%emt 0:01:18]} 42. Kf3 {[%emt 0:00:18]} Rc4 {[%emt 0:00:37]} 43. g4 {[%emt 0:02:02]} Rc3+ {[%emt 0:07:30]} 44. Kg2 {[%emt 0:01:59]} b3 {[%emt 0:00:35]} 45. h4 {[%emt 0:01:06]} Kg6 {[%emt 0:07:42]} 46. h5+ {[%emt 0:02:19]} Kg5 {[%emt 0:00:22]} 47. Rxg7+ {[%emt 0:02:10]} Kh4 {[%emt 0:00:21]} 48. Rf7 {[%emt 0:03:38]} Kxg4 {[%emt 0:00:23]} 49. Kf2 {[%emt 0:00:59]} f5 {[%emt 0:01:31]} 50. Rf6 {[%emt 0:01:06]} Kg5 {[%emt 0:00:15]} 51. Rf7 {[%emt 0:00:20]} Kf4 {[%emt 0:00:14]} 52. Ke2 {[%emt 0:00:16]} Rh3 {[%emt 0:00:09]} 53. Kd2 {[%emt 0:00:50]} Rxh5 {[%emt 0:00:12]} 54. Rb7 {[%emt 0:00:23]} Rh3 {[%emt 0:00:07]} 55. Rb4+ {[%emt 0:00:14]} Kg5 {[%emt 0:00:06]} 56. Ke2 {[%emt 0:00:13]} h5 {[%emt 0:00:23]} 57. Kf2 {[%emt 0:00:18]} h4 {[%emt 0:00:09]} 58. Kg2 {[%emt 0:00:18]} Rc3 {[%emt 0:00:08]} 0-1

[Event "EYCC Open-U12 2019"]
[Site "Bratislava"]
[Date "2019.08.09"]
[Round "8.29"]
[White "De Winter, Arthur"]
[Black "Gregoric, Andraz"]
[Result "1/2-1/2"]
[ECO "C99"]
[WhiteElo "1859"]
[BlackElo "1911"]
[Annotator "NA"]
[PlyCount "77"]
[EventDate "2019.08.02"]
[EventType "swiss"]
[EventCountry "SVK"]
[SourceTitle "playchess.com"]
[Source "ChessBase"]
[SourceQuality "1"]
[TimeControl "40/5400+30:1800+30"]

1. e4 {[%emt 0:00:00]} e5 {[%emt 0:00:00]} 2. Nf3 {[%emt 0:00:00]} Nc6 {[%emt 0:00:00]} 3. Bb5 {[%emt 0:00:00]} a6 {[%emt 0:00:00]} 4. Ba4 {[%emt 0:00:03]} Nf6 {[%emt 0:00:00]} 5. O-O {[%emt 0:00:19]} Be7 {[%emt 0:00:00]} 6. Re1 {[%emt 0:00:15]} b5 {[%emt 0:00:04]} 7. Bb3 {[%emt 0:00:06]} d6 {[%emt 0:00:09]} 8. c3 {[%emt 0:00:47]} O-O {[%emt 0:00:10]} 9. h3 {[%emt 0:00:11]} Na5 {[%emt 0:00:08]} 10. Bc2 {[%emt 0:00:12]} c5 {[%emt 0:00:05]} 11. d4 {[%emt 0:00:23]} Qc7 {[%emt 0:00:08]} 12. Nbd2 {[%emt 0:01:09]} cxd4 {[%emt 0:00:59]} 13. cxd4 {[%emt 0:00:08]} Nc6 {[%emt 0:01:15]} 14. d5 {[%emt 0:01:32]} Nb4 {[%emt 0:03:14]} 15. Bb1 {[%emt 0:00:14]} a5 {[%emt 0:00:41]} 16. Nf1 {[%emt 0:03:13]} Bd7 {[%emt 0:10:21]} 17. Ng3 {[%emt 0:01:37]} h6 {[%emt 0:04:01]} 18. a3 {[%emt 0:09:30]} Na6 {[%emt 0:00:06]} 19. Be3 {[%emt 0:08:40]} Nh7 {[%emt 0:02:17]} 20. Nh2 {[%emt 0:06:25]} Bg5 {[%emt 0:02:24]} 21. Nf3 {[%emt 0:08:49]} Bxe3 {[%emt 0:00:24]} 22. Rxe3 {[%emt 0:00:00]} Rac8 {[%emt 0:00:58]} 23. Bd3 {[%emt 0:02:00]} a4 {[%emt 0:05:24]} 24. Nh4 {[%emt 0:06:41]} g6 {[%emt 0:02:48]} 25. Qe2 {[%emt 0:06:38]} Qb6 {[%emt 0:07:47]} 26. Kh2 {[%emt 0:07:27]} Kg7 {[%emt 0:01:22]} 27. Rf1 {[%emt 0:03:29]} Nc5 {[%emt 0:03:54]} 28. f4 {[%emt 0:06:05]} f6 {[%emt 0:00:35]} 29. f5 {[%emt 0:11:55]} g5 {[%emt 0:02:30]} 30. Nh5+ {[%emt 0:00:54]} Kf7 {[%emt 0:01:55]} 31. Ng6 {[%emt 0:00:16]} Rg8 {[%emt 0:02:14]} 32. Ng3 {[%emt 0:01:31]} Be8 {[%emt 0:03:28]} 33. Rc1 {[%emt 0:04:00]} Nf8 {[%emt 0:06:31]} 34. Nxf8 {[%emt 0:01:20]} Rxf8 {[%emt 0:00:33]} 35. Bb1 {[%emt 0:03:07]} Qb7 {[%emt 0:05:33]} 36. Rec3 {[%emt 0:00:45]} Ke7 {[%emt 0:02:55]} 37. Nf1 {[%emt 0:01:58]} h5 {[%emt 0:04:07]} 38. Ne3 {[%emt 0:04:31]} Qb6 {[%emt 0:07:31]} 39. Qd1 {[%emt 0:01:07]} 1/2-1/2

[Event "EYCC Open-U12 2019"]
[Site "Bratislava"]
[Date "2019.08.09"]
[Round "8.30"]
[White "Tarhan, Adar"]
[Black "Janous, Marek"]
[Result "1-0"]
[ECO "B42"]
[WhiteElo "1972"]
[BlackElo "1717"]
[Annotator "NA"]
[PlyCount "82"]
[EventDate "2019.08.02"]
[EventType "swiss"]
[EventCountry "SVK"]
[SourceTitle "playchess.com"]
[Source "ChessBase"]
[SourceQuality "1"]
[TimeControl "40/5400+30:1800+30"]

1. e4 {[%emt 0:00:00]} c5 {[%emt 0:00:00]} 2. Nf3 {[%emt 0:00:00]} e6 {[%emt 0:00:17]} 3. d4 {[%emt 0:00:00]} cxd4 {[%emt 0:00:37]} 4. Nxd4 {[%emt 0:00:06]} a6 {[%emt 0:00:06]} 5. Bd3 {[%emt 0:00:04]} Qc7 {[%emt 0:00:06]} 6. O-O {[%emt 0:00:18]} Nf6 {[%emt 0:00:06]} 7. Qe2 {[%emt 0:00:10]} Bc5 {[%emt 0:01:00]} 8. Nb3 {[%emt 0:00:26]} Ba7 {[%emt 0:00:10]} 9. c4 {[%emt 0:08:44]} d6 {[%emt 0:01:37]} 10. Nc3 {[%emt 0:00:15]} Nc6 {[%emt 0:00:14]} 11. Bg5 {[%emt 0:03:06]} Nd7 {[%emt 0:02:13]} 12. Kh1 {[%emt 0:01:36]} Nde5 {[%emt 0:13:28]} 13. Bb1 {[%emt 0:04:20]} Nd4 {[%emt 0:02:36]} 14. Nxd4 {[%emt 0:00:07]} Bxd4 {[%emt 0:00:05]} 15. Bd3 {[%emt 0:00:36]} Bxc3 {[%emt 0:00:35]} 16. bxc3 {[%emt 0:00:05]} Bd7 {[%emt 0:00:37]} 17. Rad1 {[%emt 0:01:40]} Rc8 {[%emt 0:09:56]} 18. Bf4 {[%emt 0:01:14]} Nxc4 {[%emt 0:03:23]} 19. Bxc4 {[%emt 0:04:05]} Qxc4 {[%emt 0:00:06]} 20. Qg4 {[%emt 0:00:43]} Qxc3 {[%emt 0:02:48]} 21. Bxd6 {[%emt 0:00:58]} Qf6 {[%emt 0:04:36]} 22. e5 {[%emt 0:03:23]} Qg6 {[%emt 0:03:02]} 23. Qd4 {[%emt 0:00:08]} Bc6 {[%emt 0:00:37]} 24. f3 {[%emt 0:00:09]} Rd8 {[%emt 0:00:38]} 25. Qc5 {[%emt 0:02:47]} f6 {[%emt 0:05:01]} 26. Bf8 {[%emt 0:06:44]} Rxf8 {[%emt 0:01:52]} 27. Rxd8+ {[%emt 0:01:27]} Kxd8 {[%emt 0:00:01]} 28. Qxf8+ {[%emt 0:00:01]} Kc7 {[%emt 0:00:50]} 29. Qd6+ {[%emt 0:00:11]} Kc8 {[%emt 0:00:24]} 30. Qxe6+ {[%emt 0:00:04]} Kb8 {[%emt 0:02:08]} 31. Qd6+ {[%emt 0:00:04]} Ka8 {[%emt 0:00:15]} 32. e6 {[%emt 0:00:15]} f5 {[%emt 0:01:16]} 33. Qd8+ {[%emt 0:00:14]} Ka7 {[%emt 0:00:06]} 34. e7 {[%emt 0:00:18]} Qe6 {[%emt 0:02:40]} 35. Qd4+ {[%emt 0:00:08]} Ka8 {[%emt 0:00:08]} 36. Qb4 {[%emt 0:00:46]} Qxa2 {[%emt 0:01:03]} 37. Re1 {[%emt 0:00:14]} Qf7 {[%emt 0:00:07]} 38. Qd4 {[%emt 0:00:16]} Qe8 {[%emt 0:00:56]} 39. Qxg7 {[%emt 0:00:07]} Ka7 {[%emt 0:00:20]} 40. Qxh7 {[%emt 0:00:00]} Qd7 {[%emt 0:00:00]} 41. Qh4 {[%emt 0:01:37]} b6 1-0

[Event "EYCC Open-U12 2019"]
[Site "Bratislava"]
[Date "2019.08.09"]
[Round "8.31"]
[White "Milanovic, Marko"]
[Black "Rakovsky, Jakub"]
[Result "1/2-1/2"]
[ECO "B51"]
[WhiteElo "1814"]
[BlackElo "1663"]
[Annotator "NA"]
[PlyCount "40"]
[EventDate "2019.08.02"]
[EventType "swiss"]
[EventCountry "SVK"]
[SourceTitle "playchess.com"]
[Source "ChessBase"]
[SourceQuality "1"]
[TimeControl "40/5400+30:1800+30"]

1. e4 {[%emt 0:00:00]} c5 {[%emt 0:00:00]} 2. Nf3 {[%emt 0:00:00]} d6 {[%emt 0:00:22]} 3. Bb5+ {[%emt 0:00:00]} Nd7 {[%emt 0:00:27]} 4. d4 {[%emt 0:00:00]} a6 {[%emt 0:01:28]} 5. Bxd7+ {[%emt 0:00:35]} Bxd7 {[%emt 0:00:35]} 6. dxc5 {[%emt 0:00:20]} dxc5 {[%emt 0:01:08]} 7. Nc3 {[%emt 0:01:31]} Bc6 {[%emt 0:01:38]} 8. Qe2 {[%emt 0:04:43]} g6 {[%emt 0:03:47]} 9. Ne5 {[%emt 0:02:18]} Qc8 {[%emt 0:07:24]} 10. Be3 {[%emt 0:08:54]} Bg7 {[%emt 0:04:21]} 11. Nxc6 {[%emt 0:06:26]} Qxc6 {[%emt 0:00:31]} 12. Qc4 {[%emt 0:03:37]} Rc8 {[%emt 0:03:41]} 13. a4 {[%emt 0:02:46]} Nf6 {[%emt 0:02:42]} 14. O-O {[%emt 0:05:12]} O-O {[%emt 0:03:45]} 15. f3 {[%emt 0:03:19]} Nd7 {[%emt 0:09:16]} 16. Nd5 Rfe8 {[%emt 0:14:51]} 17. Bg5 {[%emt 0:14:14]} Nb6 {[%emt 0:06:05]} 18. Qb3 {[%emt 0:05:47]} Nxd5 {[%emt 0:01:42]} 19. exd5 {[%emt 0:01:13]} Qd7 {[%emt 0:00:19]} 20. c4 {[%emt 0:05:57]} e6 {[%emt 0:04:33]} 1/2-1/2

[Event "EYCC Open-U12 2019"]
[Site "Bratislava"]
[Date "2019.08.09"]
[Round "8.32"]
[White "Uritsky, Yonathan"]
[Black "Cherneyko, Ivan"]
[Result "1-0"]
[ECO "B12"]
[WhiteElo "2040"]
[BlackElo "1743"]
[Annotator "NA"]
[PlyCount "87"]
[EventDate "2019.08.02"]
[EventType "swiss"]
[EventCountry "SVK"]
[SourceTitle "playchess.com"]
[Source "ChessBase"]
[SourceQuality "1"]
[TimeControl "40/5400+30:1800+30"]

1. e4 {[%emt 0:00:00]} c6 {[%emt 0:00:00]} 2. d4 {[%emt 0:00:00]} d5 {[%emt 0:00:00]} 3. f3 {[%emt 0:00:03]} g6 {[%emt 0:21:58]} 4. c3 {[%emt 0:00:37]} Bg7 {[%emt 0:01:04]} 5. Na3 {[%emt 0:00:56]} e6 {[%emt 0:17:37]} 6. e5 {[%emt 0:02:20]} Ne7 {[%emt 0:05:11]} 7. f4 {[%emt 0:01:15]} a6 {[%emt 0:01:22]} 8. Nf3 {[%emt 0:00:30]} Qc7 {[%emt 0:03:55]} 9. Bd3 {[%emt 0:02:01]} c5 {[%emt 0:00:31]} 10. O-O {[%emt 0:00:52]} Bd7 {[%emt 0:05:15]} 11. Be3 {[%emt 0:07:52]} c4 {[%emt 0:02:48]} 12. Bb1 {[%emt 0:00:44]} b5 {[%emt 0:02:27]} 13. g4 {[%emt 0:00:42]} a5 {[%emt 0:01:02]} 14. Nc2 {[%emt 0:00:46]} Nbc6 {[%emt 0:02:33]} 15. a3 {[%emt 0:00:52]} h5 {[%emt 0:10:45]} 16. h3 {[%emt 0:00:12]} Rb8 {[%emt 0:03:17]} 17. Qe1 {[%emt 0:01:49]} Qb6 {[%emt 0:02:54]} 18. Bd2 {[%emt 0:00:23]} hxg4 {[%emt 0:00:18]} 19. hxg4 {[%emt 0:00:07]} Ng8 {[%emt 0:03:01]} 20. Ne3 {[%emt 0:02:46]} Nh6 {[%emt 0:05:13]} 21. Kg2 {[%emt 0:02:36]} b4 {[%emt 0:01:36]} 22. f5 {[%emt 0:01:30]} gxf5 {[%emt 0:01:00]} 23. gxf5 {[%emt 0:00:11]} Kd8 {[%emt 0:01:33]} 24. axb4 {[%emt 0:03:50]} axb4 {[%emt 0:00:04]} 25. Kf2 {[%emt 0:05:56]} Kc7 {[%emt 0:03:14]} 26. f6 {[%emt 0:04:32]} Bf8 {[%emt 0:00:10]} 27. Bc2 {[%emt 0:00:17]} Ng8 {[%emt 0:01:57]} 28. Ng4 {[%emt 0:01:54]} Nh6 {[%emt 0:00:30]} 29. Ne3 {[%emt 0:00:38]} Ng8 {[%emt 0:00:16]} 30. Rh1 {[%emt 0:01:24]} Nh6 {[%emt 0:01:09]} 31. Rh2 {[%emt 0:01:27]} Kb7 {[%emt 0:00:21]} 32. Qh1 {[%emt 0:01:36]} b3 33. Bb1 Rg8 {[%emt 0:02:29]} 34. Rxh6 {[%emt 0:03:05]} Bxh6 {[%emt 0:00:04]} 35. Qxh6 {[%emt 0:00:07]} Ra8 {[%emt 0:01:03]} 36. Rxa8 {[%emt 0:00:22]} Rxa8 {[%emt 0:00:21]} 37. Qg7 {[%emt 0:00:20]} Be8 {[%emt 0:00:19]} 38. Ng5 {[%emt 0:02:10]} Qc7 {[%emt 0:00:16]} 39. Qf8 {[%emt 0:01:35]} Ra1 {[%emt 0:01:17]} 40. Qxe8 {[%emt 0:00:00]} Rxb1 {[%emt 0:00:00]} 41. Nxe6 {[%emt 0:08:19]} fxe6 {[%emt 0:12:20]} 42. f7 {[%emt 0:00:19]} Nxe5 {[%emt 0:01:19]} 43. f8=Q {[%emt 0:00:48]} Nd3+ {[%emt 0:00:52]} 44. Kf3 {[%emt 0:00:16]} 1-0